[Event "Iceland-ch 2020"]
[Site "Gardabaer"]
[Date "2020.08.23"]
[Round "2.1"]
[White "Gretarsson, Hjorvar Steinn"]
[Black "Stefansson, Vignir Vatnar"]
[Result "1-0"]
[ECO "D37"]
[WhiteElo "2579"]
[BlackElo "2301"]
[Annotator "ChessBase"]
[PlyCount "89"]
[EventDate "2020.08.22"]
[EventCountry "ISL"]
[SourceTitle "playchess.com"]
[Source "ChessBase"]
[SourceQuality "1"]
[TimeControl "30/5400+30:900+30"]

1. c4 {[%emt 0:00:00]} Nf6 {[%emt 0:00:00]} 2. Nc3 {[%emt 0:00:00]} e6 {[%emt 0:00:00]} 3. Nf3 {[%emt 0:00:00]} d5 {[%emt 0:00:46]} 4. d4 {[%emt 0:00:00]} Be7 {[%emt 0:00:08]} 5. Bf4 {[%emt 0:02:24]} O-O {[%emt 0:00:41]} 6. Rc1 {[%emt 0:01:13]} c5 {[%emt 0:03:29]} 7. dxc5 {[%emt 0:02:44]} dxc4 {[%emt 0:02:18]} 8. e4 {[%emt 0:10:47]} Qxd1+ {[%emt 0:07:58]} 9. Rxd1 {[%emt 0:00:09]} Bxc5 {[%emt 0:00:06]} 10. Bxc4 {[%emt 0:00:40]} Bb4 {[%emt 0:03:24]} 11. Bd6 {[%emt 0:06:49]} Bxc3+ {[%emt 0:02:33]} 12. bxc3 {[%emt 0:00:07]} Rd8 {[%emt 0:00:35]} 13. O-O {[%emt 0:01:39]} Nc6 {[%emt 0:03:22]} 14. Rfe1 {[%emt 0:18:32]} b6 {[%emt 0:00:45]} 15. Ne5 {[%emt 0:12:25]} Nxe5 {[%emt 0:18:11]} 16. Bxe5 {[%emt 0:00:11]} Bb7 {[%emt 0:01:01]} 17. f3 {[%emt 0:01:43]} Rac8 {[%emt 0:00:43]} 18. Bb5 {[%emt 0:05:10]} h6 {[%emt 0:00:58]} 19. a4 {[%emt 0:12:15]} a6 {[%emt 0:04:08]} 20. Rxd8+ {[%emt 0:01:08]} Rxd8 {[%emt 0:02:00]} 21. Bf1 {[%emt 0:01:22]} Nd7 {[%emt 0:02:22]} 22. Bd4 {[%emt 0:03:07]} e5 {[%emt 0:05:06]} 23. Bf2 {[%emt 0:02:49]} Bc6 {[%emt 0:04:46]} 24. Bxa6 {[%emt 0:03:00]} Bxa4 {[%emt 0:00:15]} 25. Rb1 {[%emt 0:02:30]} Nc5 {[%emt 0:06:00]} 26. Bxc5 {[%emt 0:04:24]} bxc5 {[%emt 0:00:12]} 27. Rb7 {[%emt 0:00:45]} Rd1+ {[%emt 0:09:23]} 28. Kf2 {[%emt 0:00:02]} Rd2+ {[%emt 0:03:18]} 29. Kg3 {[%emt 0:00:31]} Bd1 {[%emt 0:01:37]} 30. Bc4 {[%emt 0:04:39]} Be2 {[%emt 0:00:06]} 31. Rb8+ {[%emt 0:15:32]} Kh7 {[%emt 0:15:05]} 32. Bxf7 {[%emt 0:00:08]} g6 {[%emt 0:01:48]} 33. Rb7 {[%emt 0:00:49]} Kh8 {[%emt 0:00:01]} 34. Bxg6 {[%emt 0:01:58]} Bf1 {[%emt 0:00:22]} 35. Kg4 {[%emt 0:00:56]} Bxg2 {[%emt 0:00:24]} 36. h4 {[%emt 0:01:01]} Rd6 {[%emt 0:02:09]} 37. h5 {[%emt 0:00:46]} Rd3 {[%emt 0:00:31]} 38. Kf5 {[%emt 0:00:58]} Rxf3+ {[%emt 0:02:14]} 39. Kxe5 {[%emt 0:00:06]} Rxc3 {[%emt 0:00:28]} 40. Kf6 {[%emt 0:00:00]} Rf3+ {[%emt 0:00:00]} 41. Bf5 {[%emt 0:00:00]} Rg3 {[%emt 0:00:00]} 42. Rh7+ {[%emt 0:00:00]} Kg8 {[%emt 0:00:00]} 43. Rc7 {[%emt 0:00:00]} Kh8 {[%emt 0:00:00]} 44. Rxc5 {[%emt 0:00:00]} Bf3 {[%emt 0:00:00]} 45. Rc3 {[%emt 0:00:00]} 1-0

[Event "Iceland-ch 2020"]
[Site "Gardabaer"]
[Date "2020.08.23"]
[Round "2.2"]
[White "Thorhallsson, Throstur"]
[Black "Kjartansson, Gudmundur"]
[Result "0-1"]
[ECO "B23"]
[WhiteElo "2430"]
[BlackElo "2466"]
[Annotator "ChessBase"]
[PlyCount "63"]
[EventDate "2020.08.22"]
[EventCountry "ISL"]
[SourceTitle "playchess.com"]
[Source "ChessBase"]
[SourceQuality "1"]
[TimeControl "30/5400+30:900+30"]

1. e4 {[%emt 0:01:20]} c5 {[%emt 0:00:00]} 2. Nc3 {[%emt 0:01:44]} d6 {[%emt 0:01:15]} 3. d4 {[%emt 0:00:55]} cxd4 {[%emt 0:00:08]} 4. Qxd4 {[%emt 0:00:05]} Nc6 {[%emt 0:00:07]} 5. Qd2 {[%emt 0:00:09]} g6 {[%emt 0:02:21]} 6. b3 {[%emt 0:08:27]} Bh6 {[%emt 0:01:14]} 7. f4 {[%emt 0:02:38]} Nf6 {[%emt 0:00:38]} 8. Bb2 {[%emt 0:04:12]} e5 {[%emt 0:02:10]} 9. g3 {[%emt 0:05:37]} O-O {[%emt 0:00:43]} 10. O-O-O {[%emt 0:02:04]} exf4 {[%emt 0:07:05]} 11. Kb1 {[%emt 0:15:33]} Bg4 {[%emt 0:09:51]} 12. Re1 {[%emt 0:04:59]} Ne5 {[%emt 0:35:29]} 13. gxf4 {[%emt 0:04:55]} Bf3 {[%emt 0:01:21]} 14. Bg2 {[%emt 0:15:19]} Bxf4 {[%emt 0:03:05]} 15. Qf2 {[%emt 0:02:27]} Nfg4 {[%emt 0:09:08]} 16. Qf1 {[%emt 0:00:25]} Ne3 {[%emt 0:01:09]} 17. Rxe3 {[%emt 0:00:12]} Bxg2 {[%emt 0:00:04]} 18. Qxf4 {[%emt 0:01:34]} Bxh1 {[%emt 0:05:38]} 19. Rg3 {[%emt 0:10:47]} f5 {[%emt 0:02:25]} 20. exf5 {[%emt 0:00:11]} Qd7 {[%emt 0:01:38]} 21. f6 {[%emt 0:00:36]} Qe6 {[%emt 0:02:44]} 22. Ne4 {[%emt 0:00:43]} Bxe4 {[%emt 0:00:56]} 23. Qxe4 {[%emt 0:00:03]} Rxf6 {[%emt 0:01:45]} 24. Qxb7 {[%emt 0:00:24]} Rf1+ {[%emt 0:01:07]} 25. Bc1 {[%emt 0:00:02]} Raf8 {[%emt 0:03:07]} 26. Kb2 {[%emt 0:00:25]} Qf6 {[%emt 0:02:16]} 27. Qd5+ {[%emt 0:01:27]} Rf7 {[%emt 0:02:14]} 28. Qd4 {[%emt 0:02:47]} Nc4+ {[%emt 0:01:10]} 29. Kc3 {[%emt 0:00:02]} Qxd4+ {[%emt 0:00:10]} 30. Kxd4 {[%emt 0:00:02]} Rxc1 {[%emt 0:00:18]} 31. Kxc4 {[%emt 0:15:15]} Rxc2+ {[%emt 0:15:10]} 32. Kd5 {[%emt 0:00:07]} 0-1

[Event "Iceland-ch 2020"]
[Site "Gardabaer"]
[Date "2020.08.23"]
[Round "2.3"]
[White "Petursson, Margeir"]
[Black "Ragnarsson, Dagur"]
[Result "0-1"]
[ECO "A29"]
[WhiteElo "2475"]
[BlackElo "2396"]
[Annotator "ChessBase"]
[PlyCount "66"]
[EventDate "2020.08.22"]
[EventCountry "ISL"]
[SourceTitle "playchess.com"]
[Source "ChessBase"]
[SourceQuality "1"]
[TimeControl "30/5400+30:900+30"]

1. c4 {[%emt 0:00:00]} e5 {[%emt 0:00:00]} 2. Nc3 {[%emt 0:00:00]} Nf6 {[%emt 0:00:00]} 3. Nf3 {[%emt 0:00:00]} Nc6 {[%emt 0:00:00]} 4. g3 {[%emt 0:00:01]} d5 {[%emt 0:00:00]} 5. cxd5 {[%emt 0:00:09]} Nxd5 {[%emt 0:00:07]} 6. Bg2 {[%emt 0:00:05]} Nb6 {[%emt 0:00:08]} 7. O-O {[%emt 0:01:55]} Be7 {[%emt 0:00:09]} 8. a3 {[%emt 0:01:06]} O-O {[%emt 0:00:56]} 9. b4 {[%emt 0:02:34]} Be6 {[%emt 0:00:18]} 10. d3 {[%emt 0:06:41]} a5 {[%emt 0:06:06]} 11. b5 {[%emt 0:02:17]} Nd4 {[%emt 0:00:04]} 12. Nd2 {[%emt 0:01:27]} Qc8 {[%emt 0:10:13]} 13. e3 {[%emt 0:03:55]} Nf5 {[%emt 0:00:21]} 14. Bb2 {[%emt 0:02:18]} Nd6 {[%emt 0:08:30]} 15. a4 {[%emt 0:08:33]} f5 {[%emt 0:12:07]} 16. Ne2 {[%emt 0:02:04]} Nf7 {[%emt 0:00:24]} 17. e4 {[%emt 0:03:36]} Rd8 {[%emt 0:09:30]} 18. Qc2 {[%emt 0:09:40]} c6 {[%emt 0:08:46]} 19. bxc6 {[%emt 0:17:59]} Qxc6 {[%emt 0:00:14]} 20. Qxc6 {[%emt 0:07:49]} bxc6 {[%emt 0:00:30]} 21. d4 {[%emt 0:05:18]} fxe4 {[%emt 0:08:16]} 22. Rfc1 {[%emt 0:01:58]} Bg4 {[%emt 0:08:06]} 23. Kf1 {[%emt 0:08:49]} e3 {[%emt 0:14:08]} 24. fxe3 {[%emt 0:01:52]} Nd5 {[%emt 0:01:47]} 25. Nc4 {[%emt 0:01:44]} Rf8 {[%emt 0:02:21]} 26. dxe5 {[%emt 0:03:28]} Nxe5+ {[%emt 0:00:30]} 27. Kg1 {[%emt 0:01:20]} Nxc4 {[%emt 0:00:06]} 28. Rxc4 {[%emt 0:00:24]} Bxe2 {[%emt 0:00:06]} 29. Rxc6 {[%emt 0:00:12]} Bf3 {[%emt 0:05:54]} 30. Bd4 {[%emt 0:00:59]} Bxg2 {[%emt 0:00:15]} 31. Kxg2 {[%emt 0:15:05]} Bf6 {[%emt 0:15:30]} 32. Re1 {[%emt 0:01:28]} Rae8 {[%emt 0:01:12]} 33. Bc5 {[%emt 0:02:35]} Rc8 {[%emt 0:03:46]} 0-1

[Event "Iceland-ch 2020"]
[Site "Gardabaer"]
[Date "2020.08.24"]
[Round "3.2"]
[White "Thorfinnsson, Bjorn"]
[Black "Thorfinnsson, Bragi"]
[Result "1/2-1/2"]
[ECO "D45"]
[WhiteElo "2387"]
[BlackElo "2427"]
[Annotator "ChessBase"]
[PlyCount "48"]
[EventDate "2020.08.22"]
[EventCountry "ISL"]
[SourceTitle "playchess.com"]
[Source "ChessBase"]
[SourceQuality "1"]
[TimeControl "30/5400+30:900+30"]

1. d4 {[%emt 0:04:20]} d5 {[%emt 0:00:10]} 2. c4 {[%emt 0:00:13]} e6 {[%emt 0:00:29]} 3. Nc3 {[%emt 0:01:01]} c6 {[%emt 0:03:01]} 4. e3 {[%emt 0:04:07]} Nd7 {[%emt 0:09:51]} 5. Qc2 {[%emt 0:04:38]} Ngf6 {[%emt 0:02:48]} 6. Nf3 {[%emt 0:01:21]} a5 {[%emt 0:01:32]} 7. Bd2 {[%emt 0:02:48]} Bb4 {[%emt 0:09:45]} 8. Bd3 {[%emt 0:01:05]} dxc4 {[%emt 0:07:47]} 9. Bxc4 {[%emt 0:00:08]} b5 {[%emt 0:00:36]} 10. Bd3 {[%emt 0:00:27]} Bb7 {[%emt 0:06:35]} 11. a4 {[%emt 0:04:16]} bxa4 {[%emt 0:02:25]} 12. Nxa4 {[%emt 0:00:23]} O-O {[%emt 0:00:52]} 13. O-O {[%emt 0:00:53]} c5 {[%emt 0:03:19]} 14. Nxc5 {[%emt 0:06:37]} Bxc5 {[%emt 0:01:03]} 15. dxc5 {[%emt 0:00:24]} Nxc5 {[%emt 0:01:54]} 16. Qxc5 {[%emt 0:12:38]} Qxd3 {[%emt 0:03:47]} 17. Bxa5 {[%emt 0:02:09]} Bxf3 {[%emt 0:04:51]} 18. gxf3 {[%emt 0:00:06]} Qe2 {[%emt 0:00:54]} 19. Bc3 {[%emt 0:02:55]} Ne4 {[%emt 0:06:40]} 20. fxe4 {[%emt 0:01:21]} Qg4+ {[%emt 0:00:09]} 21. Kh1 {[%emt 0:00:04]} Qf3+ {[%emt 0:00:10]} 22. Kg1 {[%emt 0:00:03]} Qg4+ {[%emt 0:00:07]} 23. Kh1 {[%emt 0:00:05]} Qf3+ {[%emt 0:00:10]} 24. Kg1 {[%emt 0:00:04]} Qg4+ {[%emt 0:00:08]} 1/2-1/2

[Event "Iceland-ch 2020"]
[Site "Gardabaer"]
[Date "2020.08.24"]
[Round "3.4"]
[White "Kjartansson, Gudmundur"]
[Black "Petursson, Margeir"]
[Result "1-0"]
[ECO "E11"]
[WhiteElo "2466"]
[BlackElo "2475"]
[Annotator "ChessBase"]
[PlyCount "93"]
[EventDate "2020.08.22"]
[EventCountry "ISL"]
[SourceTitle "playchess.com"]
[Source "ChessBase"]
[SourceQuality "1"]
[TimeControl "30/5400+30:900+30"]

1. d4 {[%emt 0:00:00]} Nf6 {[%emt 0:00:00]} 2. c4 {[%emt 0:00:00]} e6 {[%emt 0:00:00]} 3. Nf3 {[%emt 0:00:00]} Bb4+ {[%emt 0:00:14]} 4. Nbd2 {[%emt 0:00:11]} O-O {[%emt 0:00:25]} 5. a3 {[%emt 0:00:09]} Be7 {[%emt 0:00:15]} 6. e4 {[%emt 0:00:18]} d6 {[%emt 0:00:13]} 7. Be2 {[%emt 0:00:56]} Nfd7 {[%emt 0:02:22]} 8. O-O {[%emt 0:05:54]} e5 {[%emt 0:00:11]} 9. Nb1 {[%emt 0:03:51]} a5 {[%emt 0:06:51]} 10. Nc3 {[%emt 0:03:05]} exd4 {[%emt 0:02:20]} 11. Nxd4 {[%emt 0:00:10]} Nc5 {[%emt 0:00:34]} 12. Be3 {[%emt 0:03:39]} a4 {[%emt 0:14:20]} 13. Qc2 {[%emt 0:01:12]} Re8 {[%emt 0:07:57]} 14. Rad1 {[%emt 0:01:02]} Bd7 {[%emt 0:08:12]} 15. Ndb5 {[%emt 0:05:03]} Nba6 {[%emt 0:07:00]} 16. Nxa4 {[%emt 0:11:15]} Nxa4 {[%emt 0:01:21]} 17. Qxa4 {[%emt 0:01:20]} Bg5 {[%emt 0:00:36]} 18. Bxg5 {[%emt 0:08:46]} Qxg5 {[%emt 0:00:08]} 19. Qc2 {[%emt 0:00:59]} Bxb5 {[%emt 0:05:42]} 20. cxb5 {[%emt 0:02:04]} Nc5 {[%emt 0:00:49]} 21. f3 {[%emt 0:06:37]} Qe3+ {[%emt 0:04:03]} 22. Kh1 {[%emt 0:07:31]} Re5 {[%emt 0:11:57]} 23. Bc4 {[%emt 0:03:53]} Re7 {[%emt 0:06:31]} 24. Qd2 {[%emt 0:05:12]} Qxd2 {[%emt 0:01:12]} 25. Rxd2 {[%emt 0:00:02]} b6 {[%emt 0:00:33]} 26. Rc1 {[%emt 0:01:45]} Kf8 {[%emt 0:03:21]} 27. g3 {[%emt 0:08:36]} Ra7 {[%emt 0:04:06]} 28. Bd5 {[%emt 0:02:18]} g6 {[%emt 0:01:06]} 29. Kg2 {[%emt 0:02:22]} f5 {[%emt 0:00:55]} 30. b4 {[%emt 0:02:09]} Nd7 {[%emt 0:02:45]} 31. exf5 {[%emt 0:16:00]} gxf5 {[%emt 0:15:08]} 32. Rc3 {[%emt 0:01:15]} Nf6 {[%emt 0:01:01]} 33. Bc6 {[%emt 0:00:31]} Re1 {[%emt 0:00:18]} 34. Kh3 {[%emt 0:04:35]} Ra1 {[%emt 0:02:54]} 35. Rdd3 {[%emt 0:00:22]} Ra2 {[%emt 0:02:55]} 36. g4 {[%emt 0:01:18]} fxg4+ {[%emt 0:02:18]} 37. fxg4 {[%emt 0:00:07]} d5 {[%emt 0:01:18]} 38. Rf3 {[%emt 0:04:31]} Kg7 {[%emt 0:00:36]} 39. Rce3 {[%emt 0:01:00]} Ne4 {[%emt 0:01:21]} 40. Bxd5 {[%emt 0:00:00]} Ng5+ {[%emt 0:00:00]} 41. Kg3 {[%emt 0:00:00]} Ra1 {[%emt 0:00:00]} 42. Rf5 {[%emt 0:00:00]} h6 {[%emt 0:00:00]} 43. Re7+ {[%emt 0:00:00]} Kg6 {[%emt 0:00:00]} 44. Bf7+ {[%emt 0:00:00]} Kg7 {[%emt 0:00:00]} 45. Bb3+ {[%emt 0:00:00]} Kg6 {[%emt 0:00:00]} 46. Bc2 {[%emt 0:00:00]} Ra2 {[%emt 0:00:00]} 47. h4 {[%emt 0:00:00]} 1-0

[Event "Iceland-ch 2020"]
[Site "Gardabaer"]
[Date "2020.08.25"]
[Round "4.1"]
[White "Gretarsson, Hjorvar Steinn"]
[Black "Thorhallsson, Throstur"]
[Result "1-0"]
[ECO "D36"]
[WhiteElo "2579"]
[BlackElo "2430"]
[Annotator "ChessBase"]
[PlyCount "91"]
[EventDate "2020.08.22"]
[EventCountry "ISL"]
[SourceTitle "playchess.com"]
[Source "ChessBase"]
[SourceQuality "1"]
[TimeControl "30/5400+30:900+30"]

1. c4 {[%emt 0:00:00]} e6 {[%emt 0:00:54]} 2. Nc3 {[%emt 0:00:00]} d5 {[%emt 0:00:12]} 3. d4 {[%emt 0:00:00]} Nf6 {[%emt 0:00:12]} 4. cxd5 {[%emt 0:00:00]} exd5 {[%emt 0:00:46]} 5. Bg5 {[%emt 0:00:00]} c6 {[%emt 0:00:28]} 6. e3 {[%emt 0:00:08]} Be7 {[%emt 0:00:19]} 7. Bd3 {[%emt 0:00:09]} Nbd7 {[%emt 0:01:38]} 8. Qc2 {[%emt 0:00:12]} g6 {[%emt 0:01:16]} 9. Nf3 {[%emt 0:04:01]} Nh5 {[%emt 0:01:34]} 10. h4 {[%emt 0:05:14]} Nf8 {[%emt 0:14:43]} 11. O-O-O {[%emt 0:04:02]} Bg4 {[%emt 0:09:03]} 12. Qb3 {[%emt 0:07:52]} Qb6 {[%emt 0:10:50]} 13. Qa4 {[%emt 0:02:25]} Qb4 {[%emt 0:12:22]} 14. Qc2 {[%emt 0:01:16]} Bxf3 {[%emt 0:01:44]} 15. gxf3 {[%emt 0:01:17]} Ne6 {[%emt 0:00:52]} 16. f4 {[%emt 0:06:30]} f6 {[%emt 0:07:55]} 17. Bh6 {[%emt 0:04:07]} f5 {[%emt 0:03:49]} 18. Be2 {[%emt 0:27:36]} Nf6 {[%emt 0:00:27]} 19. Bg5 {[%emt 0:01:41]} O-O-O {[%emt 0:05:46]} 20. Rhg1 {[%emt 0:05:58]} Kb8 {[%emt 0:02:10]} 21. Kb1 {[%emt 0:00:42]} Rhg8 {[%emt 0:01:05]} 22. Bf3 {[%emt 0:01:33]} a6 {[%emt 0:00:52]} 23. Rd3 {[%emt 0:03:31]} Rc8 {[%emt 0:03:02]} 24. Rc1 {[%emt 0:01:44]} Nd7 {[%emt 0:04:09]} 25. Ne2 {[%emt 0:08:12]} Bd6 {[%emt 0:01:48]} 26. Rb3 {[%emt 0:02:05]} Qa5 {[%emt 0:00:06]} 27. Nc3 {[%emt 0:01:20]} Ka7 {[%emt 0:02:01]} 28. Qd2 {[%emt 0:01:39]} Kb8 {[%emt 0:01:15]} 29. Qd3 {[%emt 0:04:00]} Rc7 {[%emt 0:01:03]} 30. a3 {[%emt 0:01:00]} Rgc8 {[%emt 0:05:14]} 31. Qc2 {[%emt 0:16:22]} Ka7 {[%emt 0:17:23]} 32. Qd2 {[%emt 0:01:09]} Ka8 {[%emt 0:00:44]} 33. Rc2 {[%emt 0:00:51]} Kb8 {[%emt 0:02:34]} 34. Qc1 {[%emt 0:00:05]} Ka7 {[%emt 0:00:36]} 35. Bh6 {[%emt 0:03:01]} b5 {[%emt 0:01:33]} 36. Qd2 {[%emt 0:01:17]} Rb8 {[%emt 0:01:09]} 37. Bg5 {[%emt 0:01:33]} Rcc8 {[%emt 0:00:45]} 38. Bxd5 {[%emt 0:00:48]} cxd5 {[%emt 0:00:42]} 39. Nxb5+ {[%emt 0:00:05]} Rxb5 {[%emt 0:00:37]} 40. Qxa5 {[%emt 0:00:00]} Rxa5 {[%emt 0:00:00]} 41. Rxc8 {[%emt 0:00:00]} Nef8 {[%emt 0:00:00]} 42. Bh6 {[%emt 0:00:00]} Rb5 {[%emt 0:00:00]} 43. Rxb5 {[%emt 0:00:00]} axb5 {[%emt 0:00:00]} 44. Bxf8 {[%emt 0:00:00]} Nxf8 {[%emt 0:00:00]} 45. Rc6 {[%emt 0:00:00]} Bb8 {[%emt 0:00:00]} 46. Rf6 {[%emt 0:00:00]} 1-0

[Event "Iceland-ch 2020"]
[Site "Gardabaer"]
[Date "2020.08.25"]
[Round "4.5"]
[White "Jonsson, Gauti Pall"]
[Black "Thorfinnsson, Bjorn"]
[Result "1/2-1/2"]
[ECO "A50"]
[WhiteElo "2046"]
[BlackElo "2387"]
[Annotator "ChessBase"]
[PlyCount "82"]
[EventDate "2020.08.22"]
[EventCountry "ISL"]
[SourceTitle "playchess.com"]
[Source "ChessBase"]
[SourceQuality "1"]
[TimeControl "30/5400+30:900+30"]

1. d4 {[%emt 0:00:00]} Nf6 {[%emt 0:00:09]} 2. c4 {[%emt 0:00:14]} b6 {[%emt 0:00:07]} 3. Nc3 {[%emt 0:00:57]} Bb7 {[%emt 0:00:14]} 4. Qc2 {[%emt 0:01:32]} d5 {[%emt 0:05:17]} 5. cxd5 {[%emt 0:02:03]} Nxd5 {[%emt 0:00:09]} 6. e4 {[%emt 0:00:55]} Nxc3 {[%emt 0:00:45]} 7. bxc3 {[%emt 0:00:30]} e5 {[%emt 0:02:34]} 8. Bb5+ {[%emt 0:02:50]} Bc6 {[%emt 0:05:05]} 9. Bxc6+ {[%emt 0:05:36]} Nxc6 {[%emt 0:00:05]} 10. Nf3 {[%emt 0:06:37]} Bd6 {[%emt 0:03:24]} 11. O-O {[%emt 0:04:32]} O-O {[%emt 0:01:02]} 12. Bg5 {[%emt 0:08:54]} Qe8 {[%emt 0:04:20]} 13. Rad1 {[%emt 0:05:52]} f6 {[%emt 0:04:53]} 14. Be3 {[%emt 0:03:37]} Rd8 {[%emt 0:08:03]} 15. Rfe1 {[%emt 0:07:05]} Qf7 {[%emt 0:02:29]} 16. Qa4 {[%emt 0:02:02]} Na5 {[%emt 0:01:40]} 17. dxe5 {[%emt 0:06:25]} Bxe5 {[%emt 0:01:58]} 18. Nxe5 {[%emt 0:02:15]} fxe5 {[%emt 0:00:06]} 19. Rxd8 {[%emt 0:00:37]} Rxd8 {[%emt 0:00:12]} 20. Rd1 {[%emt 0:00:16]} Rxd1+ {[%emt 0:01:44]} 21. Qxd1 {[%emt 0:00:08]} Nc6 {[%emt 0:00:29]} 22. Qa4 {[%emt 0:01:13]} Qe6 {[%emt 0:00:20]} 23. Qa6 {[%emt 0:01:10]} Kf7 {[%emt 0:00:49]} 24. Qb7 {[%emt 0:01:26]} Qd7 {[%emt 0:01:02]} 25. h3 {[%emt 0:00:27]} h6 {[%emt 0:01:32]} 26. Kh2 {[%emt 0:01:22]} Ke7 {[%emt 0:01:27]} 27. Qa8 {[%emt 0:02:38]} Qe8 {[%emt 0:00:05]} 28. Qb7 {[%emt 0:00:34]} Kd7 {[%emt 0:00:11]} 29. f4 {[%emt 0:05:38]} Qe6 {[%emt 0:00:27]} 30. Qa8 {[%emt 0:02:55]} exf4 {[%emt 0:00:21]} 31. Bxf4 {[%emt 0:15:08]} Qxe4 {[%emt 0:15:13]} 32. Qf8 {[%emt 0:03:00]} Qg6 {[%emt 0:00:07]} 33. Bg3 {[%emt 0:03:15]} a5 {[%emt 0:00:12]} 34. Qf4 {[%emt 0:00:24]} Ne7 {[%emt 0:05:03]} 35. Qxc7+ {[%emt 0:00:58]} Ke8 {[%emt 0:00:04]} 36. Bd6 {[%emt 0:01:40]} Qf6 {[%emt 0:01:34]} 37. Qxb6 {[%emt 0:02:54]} Qxc3 {[%emt 0:00:18]} 38. Qb7 {[%emt 0:02:27]} Qf6 {[%emt 0:02:43]} 39. Bxe7 {[%emt 0:01:36]} Qe5+ {[%emt 0:00:05]} 40. Kg1 {[%emt 0:00:00]} Qe1+ {[%emt 0:00:00]} 41. Kh2 {[%emt 0:00:00]} Qe5+ {[%emt 0:00:00]} 1/2-1/2

[Event "Iceland-ch 2020"]
[Site "Gardabaer"]
[Date "2020.08.26"]
[Round "5.4"]
[White "Stefansson, Vignir Vatnar"]
[Black "Gretarsson, Helgi Ass"]
[Result "0-1"]
[ECO "D00"]
[WhiteElo "2301"]
[BlackElo "2401"]
[Annotator "ChessBase"]
[PlyCount "86"]
[EventDate "2020.08.22"]
[EventCountry "ISL"]
[SourceTitle "playchess.com"]
[Source "ChessBase"]
[SourceQuality "1"]
[TimeControl "30/5400+30:900+30"]

1. d4 {[%emt 0:00:00]} d5 {[%emt 0:00:00]} 2. Bf4 {[%emt 0:01:18]} c5 {[%emt 0:00:06]} 3. e3 {[%emt 0:00:05]} Nc6 {[%emt 0:00:07]} 4. c3 {[%emt 0:01:09]} Bf5 {[%emt 0:02:53]} 5. Nf3 {[%emt 0:01:40]} Qb6 {[%emt 0:03:15]} 6. Qb3 {[%emt 0:06:46]} c4 {[%emt 0:35:20]} 7. Qxb6 {[%emt 0:00:22]} axb6 {[%emt 0:00:01]} 8. Nbd2 {[%emt 0:00:28]} b5 {[%emt 0:00:25]} 9. a3 {[%emt 0:00:28]} h6 {[%emt 0:04:08]} 10. Rc1 {[%emt 0:02:02]} e6 {[%emt 0:00:33]} 11. h3 {[%emt 0:03:25]} Nf6 {[%emt 0:00:25]} 12. g4 {[%emt 0:02:08]} Bh7 {[%emt 0:00:22]} 13. Bg2 {[%emt 0:02:51]} Nd7 {[%emt 0:03:53]} 14. Ne5 {[%emt 0:06:42]} Nb6 {[%emt 0:18:24]} 15. Nxc6 {[%emt 0:02:00]} bxc6 {[%emt 0:00:06]} 16. e4 {[%emt 0:00:20]} O-O-O {[%emt 0:13:42]} 17. O-O {[%emt 0:09:54]} c5 {[%emt 0:00:39]} 18. Be3 {[%emt 0:01:57]} Na4 {[%emt 0:01:56]} 19. Rb1 {[%emt 0:00:02]} g5 {[%emt 0:05:36]} 20. f4 {[%emt 0:02:02]} gxf4 {[%emt 0:00:11]} 21. Rxf4 {[%emt 0:00:09]} Bg6 {[%emt 0:12:11]} 22. Rf2 {[%emt 0:11:59]} e5 {[%emt 0:00:00]} 23. Rbf1 {[%emt 0:12:14]} Bg7 {[%emt 0:00:00]} 24. dxc5 {[%emt 0:03:56]} d4 {[%emt 0:00:00]} 25. cxd4 {[%emt 0:00:01]} exd4 {[%emt 0:00:00]} 26. Bf4 {[%emt 0:00:00]} Nxc5 {[%emt 0:00:00]} 27. Bg3 {[%emt 0:00:05]} Nd3 {[%emt 0:00:00]} 28. Rf5 {[%emt 0:04:32]} Bxf5 {[%emt 0:00:00]} 29. Rxf5 {[%emt 0:00:01]} c3 {[%emt 0:00:00]} 30. bxc3 {[%emt 0:00:01]} dxc3 {[%emt 0:00:00]} 31. Nb3 {[%emt 0:15:01]} c2 {[%emt 0:12:38]} 32. Rxb5 {[%emt 0:00:05]} Bd4+ {[%emt 0:00:18]} 33. Kf1 {[%emt 0:00:34]} c1=Q+ {[%emt 0:00:10]} 34. Nxc1 {[%emt 0:00:02]} Nxc1 {[%emt 0:00:04]} 35. e5 {[%emt 0:00:04]} Ba7 {[%emt 0:04:23]} 36. Bd5 {[%emt 0:03:11]} Rhe8 {[%emt 0:00:39]} 37. Bxf7 {[%emt 0:01:07]} Rd1+ {[%emt 0:00:16]} 38. Kg2 {[%emt 0:00:09]} Red8 {[%emt 0:00:08]} 39. Bf4 {[%emt 0:00:46]} Rg1+ {[%emt 0:01:09]} 40. Kh2 {[%emt 0:00:00]} Rdd1 {[%emt 0:00:00]} 41. Bc4 {[%emt 0:00:00]} Nd3 {[%emt 0:00:00]} 42. Bxd3 {[%emt 0:00:00]} Rxd3 {[%emt 0:00:00]} 43. Ra5 {[%emt 0:00:00]} Rb1 {[%emt 0:00:00]} 0-1

[Event "Iceland-ch 2020"]
[Site "Gardabaer"]
[Date "2020.08.27"]
[Round "6.4"]
[White "Jonsson, Gauti Pall"]
[Black "Kjartansson, Gudmundur"]
[Result "0-1"]
[ECO "E20"]
[WhiteElo "2046"]
[BlackElo "2466"]
[Annotator "ChessBase"]
[PlyCount "70"]
[EventDate "2020.08.22"]
[EventCountry "ISL"]
[SourceTitle "playchess.com"]
[Source "ChessBase"]
[SourceQuality "1"]
[TimeControl "30/5400+30:900+30"]

1. d4 {[%emt 0:00:00]} Nf6 {[%emt 0:00:00]} 2. c4 {[%emt 0:00:21]} e6 {[%emt 0:00:00]} 3. Nc3 {[%emt 0:00:32]} Bb4 {[%emt 0:00:14]} 4. f3 {[%emt 0:01:48]} d5 {[%emt 0:02:21]} 5. a3 {[%emt 0:00:50]} Bd6 {[%emt 0:00:55]} 6. Bg5 {[%emt 0:10:01]} c5 {[%emt 0:04:59]} 7. dxc5 {[%emt 0:07:05]} Bxc5 {[%emt 0:00:57]} 8. Nh3 {[%emt 0:09:41]} h6 {[%emt 0:09:10]} 9. Bh4 {[%emt 0:05:20]} O-O {[%emt 0:01:49]} 10. e4 {[%emt 0:04:24]} d4 {[%emt 0:09:41]} 11. Nb1 {[%emt 0:05:30]} e5 {[%emt 0:04:35]} 12. Nf2 {[%emt 0:04:12]} Nc6 {[%emt 0:03:47]} 13. Nd3 {[%emt 0:03:39]} Be7 {[%emt 0:02:55]} 14. Be2 {[%emt 0:05:19]} Be6 {[%emt 0:11:54]} 15. Nd2 {[%emt 0:02:21]} a5 {[%emt 0:07:07]} 16. b3 {[%emt 0:02:21]} b6 {[%emt 0:02:35]} 17. O-O {[%emt 0:03:59]} Nd7 {[%emt 0:05:05]} 18. Bxe7 {[%emt 0:03:46]} Qxe7 {[%emt 0:02:11]} 19. Kh1 {[%emt 0:04:57]} Nc5 {[%emt 0:01:37]} 20. g4 {[%emt 0:04:19]} Qg5 {[%emt 0:03:31]} 21. Rg1 {[%emt 0:02:04]} Ne7 {[%emt 0:02:28]} 22. f4 {[%emt 0:07:16]} exf4 {[%emt 0:01:05]} 23. Nf3 {[%emt 0:00:44]} Qg6 {[%emt 0:00:50]} 24. Nxf4 {[%emt 0:01:41]} Qxe4 {[%emt 0:00:32]} 25. Nd3 {[%emt 0:02:51]} Nxb3 {[%emt 0:07:21]} 26. Qxb3 {[%emt 0:04:09]} Qxe2 {[%emt 0:00:07]} 27. Nf4 {[%emt 0:01:12]} Qe4 {[%emt 0:01:50]} 28. Ng2 {[%emt 0:01:49]} a4 {[%emt 0:01:51]} 29. Qd1 {[%emt 0:01:19]} Bxg4 {[%emt 0:00:18]} 30. Nd2 {[%emt 0:00:23]} Bxd1 {[%emt 0:02:22]} 31. Nxe4 {[%emt 0:15:02]} Bf3 {[%emt 0:15:20]} 32. Nd2 {[%emt 0:00:09]} Bc6 {[%emt 0:00:43]} 33. Rge1 {[%emt 0:00:15]} Nf5 {[%emt 0:00:12]} 34. Kg1 {[%emt 0:00:09]} Bxg2 {[%emt 0:00:06]} 35. Kxg2 {[%emt 0:00:09]} Ne3+ {[%emt 0:00:02]} 0-1